[Event "Hungarian Youth-ch U18 2022"]
[Site "Eger"]
[Date "2022.07.25"]
[Round "3.3"]
[White "Juhasz, Agoston"]
[Black "Forgacs, Attila Jr."]
[Result "1-0"]
[ECO "E94"]
[WhiteElo "2344"]
[BlackElo "2215"]
[Annotator "TA"]
[PlyCount "71"]
[EventDate "2022.07.21"]
[EventType "tourn"]
[EventCountry "HUN"]
[SourceTitle "playchess.com"]
[Source "ChessBase"]
[SourceQuality "1"]
[TimeControl "40/5400+30:1800+30"]

{[%evp 21,71,75,88,77,67,67,77,64,58,50,50,57,73,61,60,40,43,38,62,10,179,91,252,242,284,270,584,580,588,595,579,579,844,820,814,814,859,828,1225,1197,1158,1139,1194,934,1229,959,29982,29983,29983,29984,29983,29984]} 1. d4 {[%emt 0:02:07]} Nf6 {[%emt 0:00:38]} 2. c4 {[%emt 0:00:23]} d6 {[%emt 0:00:30]} 3. Nc3 {[%emt 0:00:22]} Nbd7 {[%emt 0:00:10]} 4. e4 {[%emt 0:00:25]} e5 {[%emt 0:00:08]} 5. Nf3 {[%emt 0:00:27]} g6 {[%emt 0:00:07]} 6. Be2 {[%emt 0:00:55]} Bg7 {[%emt 0:00:10]} 7. O-O {[%emt 0:00:27]} O-O {[%emt 0:00:06]} 8. Be3 {[%emt 0:01:00]} c6 {[%emt 0:00:55]} 9. d5 {[%emt 0:00:38]} c5 {[%emt 0:00:17]} 10. Ne1 {[%emt 0:01:08]} Ne8 {[%emt 0:00:36]} 11. g4 {[%emt 0:01:19]} f5 {[%emt 0:00:30]} 12. exf5 {[%emt 0:00:33] E94: King's Indian: Classical: 6 Be2 e5 7 0-0: Various Black 7th moves.} gxf5 {[%emt 0:00:16]} 13. gxf5 {[%emt 0:00:19]} Nb6 {[%emt 0:00:35]} 14. Nf3 {[%emt 0:01:17] White is better.} Bxf5 {[%emt 0:00:25]} 15. Ng5 {[%emt 0:00:57] Prevents e4.} Qe7 {[%emt 0:01:16]} 16. Kh1 {[%emt 0:02:01]} Nf6 {[%emt 0:00:47]} 17. Rg1 {[%emt 0:03:25]} Kh8 {[%emt 0:00:19]} 18. f3 {[%emt 0:01:24][%cal Bf2f3,Bf3f4,Bf4g5][%mdl 32]} e4 {[%emt 0:00:25] [#] Prevents Bd3. Strongly threatening ...exf3.} 19. f4 {[%emt 0:02:15] [#]} Rg8 $146 {[%emt 0:24:58]} ({Predecessor:} 19... h6 20. Ne6 Bxe6 21. dxe6 Qxe6 22. f5 Qxf5 23. Qxd6 Rad8 24. Qxc5 Qe6 25. Rg6 Rc8 {1-0 (42) Michaelsen,N (2440)-Maiwald,J (2490) Germany 1996}) 20. Qe1 {[%emt 0:11:10] White is more active.} (20. Rb1 $14) 20... Bh6 $2 {[%emt 0:07:38] White stays focused until the end.} (20... h6 $11 {and Black is okay.}) 21. Nb5 {[%emt 0:20:09]} (21. b4 $18) 21... Bxg5 $2 {[%emt 0:22:30]} (21... Nc8 $16 {was called for.}) 22. fxg5 $18 {[%emt 0:03:50]} Nfd7 {[%emt 0:02:06]} 23. b4 {[%emt 0:07:30]} a6 $2 {[%emt 0:06:09] [#]} (23... Raf8 24. bxc5 dxc5 25. Qc3+ (25. Nxa7 Rg7 $18) 25... Rg7 26. Nxa7 Ra8) 24. Nxd6 $1 {[%emt 0:08:26][%mdl 512]} Qxd6 {[%emt 0:00:47]} 25. bxc5 {[%emt 0:01:28]} Nxc5 {[%emt 0:06:32]} 26. Qf2 {[%emt 0:06:54][%csl LRc5,LRf5]} Nbd7 {[%emt 0:14:06]} 27. Bd4+ {[%emt 0:02:42]} Rg7 {[%emt 0:02:19]} 28. Qxf5 {[%emt 0:01:49]} Rf8 {[%emt 0:00:13]} 29. Qh3 {[%emt 0:06:12] Hoping for Qh6.} Ne5 {[%emt 0:01:24]} 30. Qh6 {[%emt 0:01:12]} Qe7 {[%emt 0:03:05]} 31. d6 {[%emt 0:00:51]} Qe8 {[%emt 0:00:08]} 32. Bxc5 {[%emt 0:01:06] A strong pair of Bishops.} Qc6 {[%emt 0:03:04]} 33. Be3 {[%emt 0:02:55]} Nd3 {[%emt 0:00:19]} 34. Rgf1 {[%emt 0:01:48] White mates.} Rf2 {[%emt 0:01:47]} 35. Rxf2 {[%emt 0:01:51]} Nxf2+ {[%emt 0:00:06]} 36. Kg1 {[%emt 0:00:36] Weighted Error Value: White=0.16 (very precise) /Black=0.95} 1-0

[Event "Hungarian Youth-ch U18 2022"]
[Site "Eger"]
[Date "2022.07.25"]
[Round "3.4"]
[White "Sulyok, Eszter"]
[Black "Juhasz, Judit"]
[Result "*"]
[WhiteElo "2091"]
[BlackElo "2037"]
[Annotator "TA"]
[PlyCount "26"]
[EventDate "2022.07.21"]
[EventType "tourn"]
[EventCountry "HUN"]
[SourceTitle "playchess.com"]
[Source "ChessBase"]
[SourceQuality "1"]
[TimeControl "40/5400+30:1800+30"]

{[%evp 11,26,12,18,24,18,33,19,10,15,14,21,31,18,10,9,0,46]} 1. Nf3 {[%emt 0:00:34]} d5 {[%emt 0:00:34]} 2. g3 {[%emt 0:00:05]} Nf6 {[%emt 0:00:15]} 3. Bg2 {[%emt 0:00:31]} c6 {[%emt 0:00:40]} 4. O-O {[%emt 0:04:04]} Bf5 {[%emt 0:04:30]} 5. b3 {[%emt 0:00:34]} e6 {[%emt 0:02:20]} 6. Bb2 {[%emt 0:00:12]} Bd6 {[%emt 0:00:55]} 7. d3 {[%emt 0:00:16] A07: Réti Opening: New York and Capablanca Systems.} O-O {[%emt 0:01:38]} 8. Nbd2 {[%emt 0:00:06][%cal Oe2e4]} h6 {[%emt 0:00:06]} 9. Re1 {[%emt 0:00:24] [#] Strongly threatening e4.} Be7 {[%emt 0:08:19]} 10. e4 {[%emt 0:05:42]} Bh7 {[%emt 0:00:08] [#]} 11. Qe2 $146 {[%emt 0:00:48]} ({Predecessor:} 11. e5 Nfd7 12. Qe2 Qc7 13. c4 Nb6 14. Nd4 N8d7 15. cxd5 Nxd5 16. f4 Nc5 17. Ne4 {1-0 (32) Abdulla,A (1789)-Mohamed,M (1599) Abu Dhabi 2012}) 11... a5 {[%emt 0:01:37]} 12. a3 {[%emt 0:02:41]} Qb6 {[%emt 0:04:24]} 13. Rab1 {[%emt 0:03:21]} Qa6 {[%emt 0:02:47] Not much happened in this game.  Weighted Error Value: White=0.04 (flawless) /Black=0.01 (flawless)} (13... Nbd7 $11 {was preferrable.}) *

[Event "Hungarian Youth-ch U18 2022"]
[Site "Eger"]
[Date "2022.07.25"]
[Round "3.4"]
[White "Toth, Nikoletta"]
[Black "Sulyok, Eszter"]
[Result "1-0"]
[ECO "A06"]
[WhiteElo "1914"]
[BlackElo "2091"]
[Annotator "TA"]
[PlyCount "63"]
[EventDate "2022.07.21"]
[EventType "tourn"]
[EventCountry "HUN"]
[SourceTitle "playchess.com"]
[Source "ChessBase"]
[SourceQuality "1"]
[TimeControl "40/5400+30:1800+30"]

{[%evp 11,63,12,26,12,17,17,46,13,18,18,22,12,15,6,19,0,39,-8,0,-4,16,0,17,-40,0,-54,66,-78,-86,-125,-134,-118,14,10,52,-26,-18,-25,136,140,111,75,89,85,76,69,260,262,334,325,691,630,1393,1392]} 1. Nf3 {[%emt 0:00:34]} d5 {[%emt 0:00:34]} 2. g3 {[%emt 0:00:05]} Nf6 {[%emt 0:00:15]} 3. Bg2 {[%emt 0:00:31]} c6 {[%emt 0:00:40]} 4. O-O {[%emt 0:04:04]} Bf5 {[%emt 0:04:30]} 5. b3 {[%emt 0:00:34]} e6 {[%emt 0:02:20]} 6. Bb2 {[%emt 0:00:12]} Bd6 {[%emt 0:00:55]} 7. d3 {[%emt 0:00:16] A07: Réti Opening: New York and Capablanca Systems.} O-O {[%emt 0:01:38]} 8. Nbd2 {[%emt 0:00:06]} h6 {[%emt 0:00:06]} 9. Re1 {[%emt 0:00:24] White is slightly better.} (9. e4 $5 dxe4 10. dxe4 Nxe4 11. Nxe4 Bxe4 12. Re1 (12. Qd4 Qf6 $11) 12... Bxf3 13. Qxf3 $11 (13. Bxf3 Qe7 $11)) 9... Be7 {[%emt 0:08:19]} 10. e4 {[%emt 0:05:42]} Bh7 {[%emt 0:00:08] [#]} 11. Qe2 $146 {[%emt 0:00:48]} ({Predecessor:} 11. e5 Nfd7 12. Qe2 Qc7 13. c4 Nb6 14. Nd4 N8d7 15. cxd5 Nxd5 16. f4 Nc5 17. Ne4 {1-0 (32) Abdulla,A (1789)-Mohamed,M (1599) Abu Dhabi 2012}) 11... a5 {[%emt 0:01:37]} 12. a3 {[%emt 0:02:41]} Qb6 {[%emt 0:04:24]} 13. Rab1 {[%emt 0:03:21]} Qa6 {[%emt 0:02:47]} 14. c4 {[%emt 0:05:45]} (14. Ne5 $14) 14... Nbd7 $11 {[%emt 0:02:27]} 15. Nd4 {[%emt 0:04:28]} Rfc8 {[%emt 0:10:13]} 16. Rbd1 {[%emt 0:11:22]} Bf8 {[%emt 0:04:40]} 17. Kh1 {[%emt 0:04:11]} (17. exd5 $11 exd5 18. Qf3) 17... b5 {[%emt 0:03:10]} 18. f4 {[%emt 0:05:39]} (18. cxb5 $11 cxb5 19. f4) 18... Rab8 {[%emt 0:14:11]} (18... bxc4 $15 19. bxc4 (19. dxc4 Nc5 $11) 19... Rcb8) 19. f5 {[%emt 0:06:46]} (19. cxb5 $14 {stays ahead.} cxb5 20. e5) 19... e5 $17 {[%emt 0:07:34]} 20. N4f3 {[%emt 0:01:04]} bxc4 {[%emt 0:01:49]} 21. dxc4 {[%emt 0:00:44]} dxe4 {[%emt 0:01:10]} (21... d4 $17 22. Ra1 Qa7) 22. Nxe5 $11 {[%emt 0:01:52]} Nc5 {[%emt 0:07:01]} 23. Qe3 {[%emt 0:15:28]} (23. Nxe4 Ncxe4 24. Bxe4 Rxb3 $11) (23. b4 $14 axb4 24. axb4 Rxb4 25. Bc3) 23... Re8 {[%emt 0:09:55] White must now prevent ...Qc8.} 24. Bd4 $1 {[%emt 0:03:37] [#]} (24. Nxe4 $2 Nfxe4 25. Bxe4 Rxb3 $19) 24... Rxe5 {[%emt 0:10:03]} 25. Bxe5 $16 {[%emt 0:00:12]} Ng4 {[%emt 0:00:07]} 26. Qd4 {[%emt 0:02:42]} (26. Bxb8 $2 {loses.} Nxe3 27. Rxe3 Qb6 $19) 26... Re8 {[%emt 0:01:19] [#] And now ...Nd3 would win.} 27. Nxe4 $1 {[%emt 0:02:31]} Nxb3 {[%emt 0:01:18] [#]} 28. Qb2 {[%emt 0:01:02] Hoping for Bd6.} Rxe5 {[%emt 0:00:21] [#] Loses the game.} ({Black should play} 28... Nxe5 $14 29. Qxb3 Bxf5) 29. h3 $1 $18 {[%emt 0:01:09]} ({Not} 29. Qxb3 Bxf5 30. Qf3 Qxc4 $11) 29... Nf2+ {[%emt 0:00:54]} 30. Qxf2 {[%emt 0:01:07] aiming for Qf4.} ({Resist} 30. Nxf2 Rxe1+ 31. Rxe1 Qxc4 $18) 30... Qxc4 $2 {[%emt 0:00:23]} (30... a4 31. Nd6 Qa5) 31. Qf4 {[%emt 0:00:45]} Rxf5 {[%emt 0:00:25] [#]} 32. Nf6+ $1 {[%emt 0:00:26][%mdl 576] Discovered Attack.  Weighted Error Value: White=0.27 (precise) /Black=0.63} 1-0

[Event "Hungarian Youth-ch U18 2022"]
[Site "Eger"]
[Date "2022.07.25"]
[Round "3.5"]
[White "Juhasz, Judit"]
[Black "Ivan, Reka Gyongyver"]
[Result "1-0"]
[ECO "B12"]
[WhiteElo "2037"]
[BlackElo "1877"]
[Annotator "TA"]
[PlyCount "77"]
[EventDate "2022.07.21"]
[EventType "tourn"]
[EventCountry "HUN"]
[SourceTitle "playchess.com"]
[Source "ChessBase"]
[SourceQuality "1"]
[TimeControl "40/5400+30:1800+30"]

{[%evp 13,77,30,22,27,25,27,42,58,46,27,119,128,258,277,248,266,286,222,312,133,217,194,243,193,185,184,225,225,227,231,229,231,252,237,307,309,306,303,301,291,327,347,356,341,373,362,380,397,547,483,482,469,562,561,561,558,603,572,686,688,1014,996,893,863,843,823]} 1. e4 {[%emt 0:00:32]} c6 {[%emt 0:00:43]} 2. d4 {[%emt 0:00:08]} d5 {[%emt 0:00:10]} 3. e5 {[%emt 0:00:04]} Bf5 {[%emt 0:00:09]} 4. h4 {[%emt 0:00:10]} h5 {[%emt 0:00:07]} 5. c4 {[%emt 0:00:04]} e6 {[%emt 0:00:24]} 6. Nc3 {[%emt 0:00:05]} Nd7 {[%emt 0:01:18]} 7. cxd5 {[%emt 0:02:04]} cxd5 {[%emt 0:00:13]} 8. Bd3 $1 {[%emt 0:00:16] The main line 8.Bd3 scores better than 8.Bg5. B12: Caro-Kann: Advance Variation.} Bxd3 {[%emt 0:00:53]} 9. Qxd3 {[%emt 0:00:06]} Ne7 {[%emt 0:01:13]} 10. Bg5 {[%emt 0:01:36] [#] Nb5 is the strong threat. White is slightly better.} Qb6 {[%emt 0:01:00]} 11. Nge2 {[%emt 0:03:30]} Nf5 {[%emt 0:02:45] [#]} (11... Nc6 $11 {keeps the balance.}) 12. Nxd5 $146 {[%emt 0:05:41]} (12. f3 Rc8 13. g4 hxg4 14. fxg4 Ne7 15. O-O-O Nc6 16. Kb1 Na5 17. Rhf1 Nc4 18. b3) ({Predecessor:} 12. f3 Rc8 13. g4 hxg4 14. fxg4 Ne7 15. O-O-O Nc6 16. Kb1 Na5 17. Rhf1 Nc4 18. b3 {1-0 (35) Blackman,J (2192)-Turincio Garcia,S (2155) Chess.com INT 2020}) 12... exd5 {[%emt 0:05:47] Loses the game.} (12... Qa5+ $16 13. Ndc3 Be7) 13. Qxf5 $18 {[%emt 0:00:15]} Bb4+ {[%emt 0:00:16]} 14. Kf1 {[%emt 0:00:14]} Nf8 {[%emt 0:08:18]} 15. a3 {[%emt 0:02:08]} Be7 {[%emt 0:11:18]} (15... Qa6 $142 16. Qf3 Ne6 17. Qxd5 O-O) 16. Rh3 {[%emt 0:03:21]} (16. Bxe7 $18 {and the rest is easy.} Kxe7 17. Qg5+ Ke8 18. Qxg7) 16... Qe6 {[%emt 0:01:29]} (16... g6 $16 17. Qc2 Bxg5) 17. Qd3 {[%emt 0:01:11]} Ng6 {[%emt 0:01:33]} (17... Bxg5 {is a better defense.} 18. hxg5 O-O-O) 18. Qb5+ {[%emt 0:01:53]} Qd7 {[%emt 0:01:27]} 19. Rb3 {[%emt 0:00:44][%cal Bh3b3,Bb3b5,Bb5d5][%mdl 32] [#] aiming for Qxd7+.} b6 {[%emt 0:01:21]} 20. Rc1 {[%emt 0:02:38]} Rd8 {[%emt 0:02:13]} 21. Rc7 {[%emt 0:02:28]} Qxb5 {[%emt 0:00:51]} 22. Rxb5 {[%emt 0:00:06]} Rd7 {[%emt 0:03:38]} 23. Rc8+ {[%emt 0:00:25]} Bd8 {[%emt 0:01:08]} 24. Rxd8+ {[%emt 0:00:18]} Rxd8 {[%emt 0:00:08]} 25. Bxd8 {[%emt 0:00:03]} Kxd8 {[%emt 0:00:09]} 26. Rxd5+ {[%emt 0:00:49][%mdl 4096] Endgame KRN-KRN} Ke7 {[%emt 0:01:00]} 27. g3 {[%emt 0:01:18]} Rc8 {[%emt 0:00:32]} 28. Nc3 {[%emt 0:00:06]} Rc6 {[%emt 0:03:08]} 29. Ke2 {[%emt 0:07:44]} Nf8 {[%emt 0:02:31]} 30. Rb5 {[%emt 0:02:06]} a6 {[%emt 0:01:18]} 31. Rb3 {[%emt 0:00:41] White is clearly winning.} b5 {[%emt 0:00:22]} 32. Kd3 {[%emt 0:01:30]} Nd7 {[%emt 0:01:23]} 33. Nd5+ {[%emt 0:01:05]} Kd8 {[%emt 0:01:38]} 34. Rc3 {[%emt 0:00:16] Inhibits Rc1.} Re6 {[%emt 0:02:11]} 35. f4 {[%emt 0:01:52]} g6 {[%emt 0:01:53]} 36. Nb4 {[%emt 0:00:28]} Nb6 {[%emt 0:01:39]} 37. d5 {[%emt 0:00:20]} Re8 {[%emt 0:00:14]} 38. Kd4 {[%emt 0:00:54]} Nc4 {[%emt 0:01:47]} 39. b3 {[%emt 0:01:30] Weighted Error Value: White=0.15 (very precise) /Black=0.43} 1-0

[Event "Hungarian Youth-ch U18 2022"]
[Site "Eger"]
[Date "2022.07.25"]
[Round "3.6"]
[White "Buri, Kata"]
[Black "Kiss, Eniko"]
[Result "1-0"]
[ECO "C44"]
[WhiteElo "1730"]
[BlackElo "1646"]
[Annotator "NA RC COMBH"]
[PlyCount "57"]
[EventDate "2022.07.21"]
[EventType "tourn"]
[EventCountry "HUN"]
[SourceTitle "playchess.com"]
[Source "ChessBase"]
[SourceQuality "1"]
[TimeControl "40/5400+30:1800+30"]

1. e4 {[%emt 0:00:46]} e5 {[%emt 0:00:51]} 2. Nf3 {[%emt 0:00:17]} Nc6 {[%emt 0:02:05]} 3. d4 {[%emt 0:00:12]} exd4 {[%emt 0:02:42]} 4. Nxd4 {[%emt 0:00:08]} Nxd4 {[%emt 0:08:38]} 5. Qxd4 {[%emt 0:00:18]} Qf6 {[%emt 0:00:15]} 6. Qc4 {[%emt 0:10:16]} c6 {[%emt 0:03:50]} 7. Nc3 {[%emt 0:03:53]} b5 {[%emt 0:06:15]} 8. Qd3 {[%emt 0:00:53]} Bb4 {[%emt 0:15:55]} 9. Bd2 {[%emt 0:03:32]} Ne7 {[%emt 0:01:09]} 10. Be2 {[%emt 0:02:12]} Ng6 {[%emt 0:01:01]} 11. O-O {[%emt 0:01:07]} Nf4 {[%emt 0:07:49]} 12. Qe3 {[%emt 0:16:00]} Nxe2+ {[%emt 0:07:09]} 13. Qxe2 {[%emt 0:00:06]} O-O {[%emt 0:01:04]} 14. a3 {[%emt 0:05:07]} Bc5 {[%emt 0:01:17]} 15. e5 {[%emt 0:05:51]} Qf5 {[%emt 0:03:15]} 16. Ne4 {[%emt 0:00:50]} Be7 {[%emt 0:06:21]} 17. Bc3 {[%emt 0:01:30]} Rd8 {[%emt 0:10:02]} 18. Rad1 {[%emt 0:03:04]} a5 {[%emt 0:03:43]} 19. Nd6 {[%emt 0:02:37]} Qe6 {[%emt 0:03:11]} 20. Rfe1 {[%emt 0:05:19]} Ba6 {[%emt 0:03:32]} 21. Qd2 {[%emt 0:05:34]} a4 {[%emt 0:01:55]} 22. Qd4 {[%emt 0:01:34]} f6 {[%emt 0:04:22]} 23. exf6 {[%emt 0:02:49]} Qxf6 {[%emt 0:01:53]} 24. Qe3 {[%emt 0:03:59]} Qxd6 {[%emt 0:02:00]} 25. Rxd6 {[%emt 0:00:20]} Bxd6 {[%emt 0:00:01]} 26. Qd4 {[%emt 0:02:04]} Bf8 {[%emt 0:00:23]} 27. Re7 {[%emt 0:01:20]} c5 {[%emt 0:01:03]} 28. Qd5+ {[%emt 0:01:08]} Kh8 {[%emt 0:00:14]} 29. Qg5 {[%emt 0:00:18]} 1-0

[Event "Hungarian Youth-ch U18 2022"]
[Site "Eger"]
[Date "2022.07.25"]
[Round "3.7"]
[White "Somogyi, Barbara"]
[Black "Koltai, Dora"]
[Result "0-1"]
[ECO "C42"]
[WhiteElo "1682"]
[BlackElo "1764"]
[Annotator "NA RC COMBH"]
[PlyCount "106"]
[EventDate "2022.07.21"]
[EventType "tourn"]
[EventCountry "HUN"]
[SourceTitle "playchess.com"]
[Source "ChessBase"]
[SourceQuality "1"]
[TimeControl "40/5400+30:1800+30"]

1. e4 {[%emt 0:00:30]} e5 {[%emt 0:00:38]} 2. Nf3 {[%emt 0:00:08]} Nf6 {[%emt 0:00:19]} 3. Nxe5 {[%emt 0:00:16]} d6 {[%emt 0:00:04]} 4. Nf3 {[%emt 0:00:10]} Nxe4 {[%emt 0:00:06]} 5. Nc3 {[%emt 0:00:27]} Nxc3 {[%emt 0:00:34]} 6. dxc3 {[%emt 0:00:10]} Be7 {[%emt 0:00:22]} 7. Bf4 {[%emt 0:01:12]} O-O {[%emt 0:01:00]} 8. Qd2 {[%emt 0:00:55]} Nd7 {[%emt 0:00:57]} 9. O-O-O {[%emt 0:03:12]} Nc5 {[%emt 0:02:45]} 10. Bd3 {[%emt 0:03:53]} Re8 {[%emt 0:04:37]} 11. Rdg1 {[%emt 0:05:23]} c6 {[%emt 0:08:24]} 12. Kb1 {[%emt 0:02:56]} Na4 {[%emt 0:12:53]} 13. Be3 {[%emt 0:04:04]} Qa5 {[%emt 0:08:51]} 14. h4 {[%emt 0:07:46]} Be6 {[%emt 0:06:23]} 15. a3 {[%emt 0:07:39]} Bf6 {[%emt 0:03:05]} 16. Nd4 {[%emt 0:14:26]} c5 {[%emt 0:11:29]} 17. Nxe6 {[%emt 0:04:40]} fxe6 {[%emt 0:18:02]} 18. Ka2 {[%emt 0:04:35]} b5 {[%emt 0:06:46]} 19. Bg5 {[%emt 0:04:43]} Nxc3+ {[%emt 0:02:52]} 20. Ka1 {[%emt 0:05:21]} Bd4 {[%emt 0:00:58]} 21. Be3 {[%emt 0:01:35]} b4 {[%emt 0:01:34]} 22. Bxd4 {[%emt 0:04:51]} cxd4 {[%emt 0:00:06]} 23. Bc4 {[%emt 0:03:11]} d5 {[%emt 0:02:46]} 24. Bb3 {[%emt 0:02:49]} Rab8 {[%emt 0:02:23]} 25. Re1 {[%emt 0:07:34]} Ne4 {[%emt 0:01:21]} 26. Qxd4 {[%emt 0:04:46]} bxa3 {[%emt 0:00:08]} 27. f3 {[%emt 0:02:14]} Nc5 {[%emt 0:00:36]} 28. Re3 {[%emt 0:01:02]} Nxb3+ {[%emt 0:01:35]} 29. cxb3 {[%emt 0:01:22]} Rb6 {[%emt 0:01:17]} 30. Rc1 {[%emt 0:00:49]} axb2+ {[%emt 0:01:22]} 31. Kxb2 {[%emt 0:00:14]} Ra6 {[%emt 0:00:20]} 32. Kc2 {[%emt 0:02:43]} Rc6+ {[%emt 0:00:52]} 33. Rc3 {[%emt 0:00:30]} Rxc3+ {[%emt 0:00:36]} 34. Qxc3 {[%emt 0:00:10]} Qxc3+ {[%emt 0:00:21]} 35. Kxc3 {[%emt 0:00:04]} Rc8+ {[%emt 0:00:03]} 36. Kd2 {[%emt 0:00:16]} Rxc1 {[%emt 0:00:34]} 37. Kxc1 {[%emt 0:00:06]} Kf7 {[%emt 0:01:02]} 38. Kd2 {[%emt 0:00:47]} Ke7 {[%emt 0:00:38]} 39. Ke3 {[%emt 0:01:19]} Kd6 {[%emt 0:00:20]} 40. Kd3 {[%emt 0:00:00]} Kc5 {[%emt 0:00:00]} 41. Kc3 {[%emt 0:01:44]} d4+ {[%emt 0:02:24]} 42. Kd3 {[%emt 0:02:04]} e5 {[%emt 0:02:17]} 43. g3 {[%emt 0:01:46]} Kb4 {[%emt 0:00:11]} 44. h5 {[%emt 0:00:32]} Kxb3 {[%emt 0:00:28]} 45. f4 {[%emt 0:00:21]} exf4 {[%emt 0:02:46]} 46. h6 {[%emt 0:01:44]} g5 {[%emt 0:00:50]} 47. gxf4 {[%emt 0:00:11]} gxf4 {[%emt 0:00:05]} 48. Kxd4 {[%emt 0:00:10]} a5 {[%emt 0:00:24]} 49. Ke4 {[%emt 0:00:08]} a4 {[%emt 0:00:06]} 50. Kxf4 {[%emt 0:00:36]} a3 {[%emt 0:00:06]} 51. Kf5 {[%emt 0:00:33]} a2 {[%emt 0:00:07]} 52. Ke6 {[%emt 0:00:40]} a1=Q {[%emt 0:00:08]} 53. Kf7 {[%emt 0:00:03]} Qg1 {[%emt 0:00:22]} 0-1

[Event "Hungarian Youth-ch U18 2022"]
[Site "Eger"]
[Date "2022.07.26"]
[Round "4.1"]
[White "Karacsonyi, Gellert"]
[Black "Juhasz, Agoston"]
[Result "1-0"]
[ECO "A48"]
[WhiteElo "2338"]
[BlackElo "2344"]
[Annotator "TA"]
[PlyCount "81"]
[EventDate "2022.07.21"]
[EventType "tourn"]
[EventCountry "HUN"]
[SourceTitle "playchess.com"]
[Source "ChessBase"]
[SourceQuality "1"]
[TimeControl "40/5400+30:1800+30"]

{[%evp 12,81,16,21,49,34,60,67,62,69,81,72,75,72,89,82,85,54,54,37,36,32,60,48,87,79,80,91,94,84,86,71,64,49,48,59,52,38,75,78,98,81,101,99,106,101,102,110,102,105,185,161,162,176,335,323,456,449,417,375,844,808,1246,1108,1010,841,847,819,818,715,706,656]} 1. d4 {[%emt 0:00:33]} Nf6 {[%emt 0:05:49]} 2. Nf3 {[%emt 0:00:10]} g6 {[%emt 0:01:30]} 3. Bg5 {[%emt 0:00:15]} Bg7 {[%emt 0:00:37]} 4. Nbd2 {[%emt 0:00:14]} O-O {[%emt 0:01:31]} 5. e4 {[%emt 0:00:09]} d5 {[%emt 0:02:33]} 6. exd5 {[%emt 0:00:15]} Nxd5 {[%emt 0:02:59]} 7. c3 {[%emt 0:00:11]} Bf5 {[%emt 0:09:22] A48: 1 d4 Nf6 2 Nf3 g6: Torre, London and Colle Systems.} 8. Bc4 {[%emt 0:17:32]} c5 {[%emt 0:12:19]} 9. dxc5 {[%emt 0:04:13]} h6 {[%emt 0:04:18] White is slightly better.} 10. Bh4 {[%emt 0:02:52]} Nf4 {[%emt 0:04:02] [#] And now ...Bd3 would win.} 11. O-O {[%emt 0:01:16] [#]} g5 $146 {[%emt 0:10:52]} ({Predecessor:} 11... Nd3 12. Bxd3 Bxd3 13. Re1 Nc6 14. Nb3 g5 15. Bg3 Bc4 16. Nfd2 Bd3 17. Nf3 Bc4 {1-0 (42) Polaczek,R (2398)-Akhayan,R (2277) Belgium 2013}) 12. Bg3 {[%emt 0:00:51]} Nd3 {[%emt 0:01:43]} 13. Bxd3 {[%emt 0:05:56]} Qxd3 {[%emt 0:04:44]} 14. Nb3 {[%emt 0:05:48]} Nc6 {[%emt 0:04:09]} 15. Qxd3 {[%emt 0:06:36]} Bxd3 {[%emt 0:00:02] A strong pair of Bishops.} 16. Rfe1 {[%emt 0:00:13]} Rad8 {[%emt 0:08:40]} 17. h4 {[%emt 0:03:12]} Bf6 {[%emt 0:02:49]} 18. hxg5 {[%emt 0:06:19]} hxg5 {[%emt 0:00:06]} 19. Be5 {[%emt 0:00:45]} Kg7 {[%emt 0:07:45]} 20. Bxf6+ {[%emt 0:02:27]} Kxf6 {[%emt 0:00:14]} 21. Nfd4 {[%emt 0:09:22]} Nxd4 {[%emt 0:00:52]} 22. Nxd4 {[%emt 0:07:56]} e5 {[%emt 0:00:38]} 23. Nf3 {[%emt 0:00:55]} Rd5 {[%emt 0:01:27]} 24. Re3 {[%emt 0:03:57][%cal Of3e5]} e4 {[%emt 0:07:21]} 25. Nd2 {[%emt 0:01:21]} Rfd8 {[%emt 0:01:27]} 26. Rae1 {[%emt 0:00:55]} Bc2 {[%emt 0:04:09]} 27. Nxe4+ {[%emt 0:01:02]} Bxe4 {[%emt 0:00:09]} 28. Rxe4 {[%emt 0:00:05]} Rxc5 $16 {[%emt 0:00:16][%mdl 4096] Endgame KRR-KRR} 29. Re7 {[%emt 0:03:58]} Rb5 {[%emt 0:01:06]} 30. b4 {[%emt 0:05:19] Strongly threatening a4.} Rd2 {[%emt 0:00:03]} (30... a5 $16 {was called for.}) 31. a4 $18 {[%emt 0:02:12]} Rf5 {[%emt 0:01:26]} 32. Rxb7 {[%emt 0:06:01]} Rdxf2 $2 {[%emt 0:00:44]} (32... Kg6) 33. Rxa7 {[%emt 0:01:02]} g4 {[%emt 0:00:43]} (33... Kg6 $142 34. a5 R5f4) 34. Ra6+ {[%emt 0:00:59]} Kg7 {[%emt 0:00:08]} 35. Ra5 {[%emt 0:00:44]} R5f4 {[%emt 0:00:19]} (35... Rxa5 36. Kxf2 (36. bxa5 Rf5 $16) 36... Rxa4) 36. Rg5+ {[%emt 0:00:15] White is clearly winning.} Kf6 {[%emt 0:00:59] [#]} 37. Rxg4 $3 {[%emt 0:00:07][%mdl 512]} Rf5 {[%emt 0:00:17]} 38. a5 {[%emt 0:00:34] Threatens to win with Ra1.} Rc2 {[%emt 0:00:45]} 39. Rg3 {[%emt 0:00:29]} Rd5 {[%emt 0:00:35]} 40. Rf1+ {[%emt 0:00:00]} Ke6 {[%emt 0:00:00]} 41. Re3+ {[%emt 0:00:20] Weighted Error Value: White=0.07 (flawless) /Black=0.26 (precise)} 1-0